bitfinex-derivatives/quotes_SOLF0:USTF0_20260126
["timestamp","ask_amount","ask_price","bid_price","bid_amount"]
[1769416318250,7.3107,123.25,123.22,1.72303418]
[1769416319146,6.42685261,123.28,123.22,1.72303418]
[1769416320155,7.3105,123.26,123.22,1.72303418]
[1769416320754,6.42555223,123.27,123.23,1.72303418]
[1769416321058,271.76,123.29,123.25,1.72303418]
[1769416323050,282.6,123.32,123.27,1.72303418]
[1769416324058,7.3076,123.3,123.27,1.72303418]
[1769416325858,7.3071,123.31,123.27,1.72303418]
[1769416326048,282.6,123.32,123.27,73.27975349]
[1769416326254,7.3053,123.34,123.29,1.72303418]
[1769416327450,7.3059,123.33,123.29,1.72303418]
[1769416327650,285.0,123.35,123.26,1.72069708]
[1769416327651,120.04355549,123.34,123.26,1.72069708]
[1769416327860,113.6391,123.34,123.26,73.27741639]
[1769416328654,7.3064,123.33,123.26,73.27741639]
[1769416329063,1.72069708,123.33,123.26,71.55671931]
[1769416330962,7.3076,123.3,123.26,71.55671931]
[1769416331857,7.3083,123.29,123.24,71.55671931]
[1769416335269,7.3089,123.28,123.24,71.55671931]
[1769416335467,7.3089,123.28,123.22,71.55671931]
[1769416337168,1.72069708,123.27,123.2,71.55671931]
[1769416337764,7.3106,123.25,123.2,71.55671931]
[1769416339171,7.3112,123.24,123.2,71.55671931]
[1769416343672,7.3112,123.24,123.16,7.3159]
[1769416343873,7.3112,123.24,123.17,73.28610852]
[1769416345769,7.3112,123.24,123.17,80.60130852]
[1769416348670,7.3112,123.24,123.17,78.88061144]
[1769416348873,7.3112,123.24,123.17,80.60130852]
[1769416349677,1.72069708,123.25,123.17,73.28610852]
[1769416349873,1.72069708,123.23,123.17,71.56541144]
[1769416350377,9.03249708,123.23,123.17,71.56541144]
[1769416350976,9.03389708,123.21,123.17,71.56541144]
[1769416351178,9.03389708,123.21,123.14,71.56541144]
[1769416353382,7.3138,123.2,123.14,71.56541144]
[1769416353578,1.72069708,123.21,123.14,71.56541144]
[1769416354274,7.3135,123.2,123.14,71.56541144]
[1769416357582,1.82513722,123.21,123.14,71.56541144]
[1769416357583,0.10444014,123.21,123.14,71.56541144]
[1769416358390,7.3138,123.2,123.14,71.56541144]
[1769416358590,0.10444014,123.21,123.14,71.56541144]
[1769416358889,1.82513722,123.2,123.14,71.56541144]
[1769416359285,7.3155,123.17,123.12,71.58844533]
[1769416367795,1.82513722,123.18,123.12,71.58844533]
[1769416367994,0.10444014,123.17,123.1,73.30914241]
[1769416368191,1.82513722,123.16,123.1,71.58844533]
[1769416368896,7.3167,123.15,123.1,71.58844533]
[1769416371097,9.14113722,123.16,123.1,71.58844533]
[1769416371489,1.82513722,123.16,123.1,71.58844533]
[1769416371896,0.10444014,123.16,123.1,71.58844533]
[1769416372094,7.3167,123.15,123.1,71.58844533]
[1769416377101,7.42114014,123.15,123.1,71.58844533]
[1769416377297,7.42114014,123.15,123.1,73.30914241]
[1769416378394,7.3171,123.14,123.1,73.30914241]
[1769416380001,7.42104014,123.15,123.1,73.30914241]
[1769416383798,0.10444014,123.15,123.1,71.58844533]
[1769416384292,1.82513722,123.15,123.08,71.58844533]
[1769416384496,0.10444014,123.14,123.08,71.58844533]
[1769416386003,7.3183,123.12,123.08,71.58844533]
[1769416390107,7.3189,123.11,123.08,71.58844533]
[1769416391203,286.74643345,123.13,123.08,71.58844533]
[1769416391404,285.02,123.13,123.08,71.58844533]
[1769416391900,292.3378,123.13,123.08,71.58844533]
[1769416393104,285.02,123.13,123.1,71.58844533]
[1769416397908,213.41803492,123.13,123.1,71.58844533]
[1769416398098,213.41803492,123.13,123.1,73.31487878]
[1769416400207,7.3166,123.15,123.1,73.31487878]
[1769416400605,298.4030395,123.16,123.1,73.31487878]
[1769416400801,298.376,123.16,123.1,73.31487878]
[1769416402005,298.376,123.16,123.12,1.72643345]
[1769416403115,299.756,123.16,123.12,1.72643345]
[1769416403907,299.756,123.16,123.11,69.38944481]
[1769416404808,364.37315491,123.16,123.11,69.38944481]
[1769416407417,64.61715491,123.18,123.13,69.38944481]
[1769416407613,359.55715491,123.18,123.13,69.38944481]
[1769416408914,7.3155,123.17,123.13,69.38944481]
[1769416411418,78.42665693,123.17,123.11,69.38944481]
[1769416411619,71.93265491,123.17,123.11,69.38944481]
[1769416413415,64.61715491,123.16,123.09,69.38944481]
[1769416413621,71.10713815,123.15,123.09,69.38944481]
[1769416413820,299.26,123.14,123.09,69.38944481]
[1769416416320,306.5772,123.14,123.09,69.38944481]
[1769416417624,7.3181,123.13,123.09,69.38944481]
[1769416419114,7.3181,123.13,123.08,1.72643345]
[1769416419115,72.89797269,123.13,123.08,1.72643345]
[1769416419319,7.3183,123.12,123.08,70.87882126]
[1769416426327,72.89817269,123.12,123.06,70.87882126]
[1769416426526,7.319,123.11,123.06,70.87882126]
[1769416428128,9.04543345,123.11,123.06,70.87882126]
[1769416428530,7.319,123.11,123.06,70.87882126]
[1769416439045,7.3196,123.1,123.06,70.87882126]
[1769416449648,1.72707976,123.1,123.06,58.54782126]
[1769416449852,1.72707976,123.1,123.01,1.72707976]
[1769416449853,1.72707976,123.08,123.01,1.72707976]
[1769416450052,1.72707976,123.09,123.01,1.72707976]
[1769416450256,1.72707976,123.09,123.02,1.72707976]
[1769416450457,7.3207,123.08,123.02,1.72707976]
[1769416451052,9.04727976,123.09,123.02,9.05127976]
[1769416451252,7.3202,123.09,123.02,9.05127976]
[1769416451754,7.3202,123.09,123.03,65.54521732]
[1769416452457,7.3202,123.09,123.03,67.27229708]
[1769416454659,390.03944267,123.1,123.03,67.27229708]
[1769416454964,388.31236291,123.1,123.03,67.27229708]
[1769416456165,390.11236291,123.1,123.03,67.27229708]
[1769416456963,390.11236291,123.1,123.03,74.59589708]
[1769416457360,390.11236291,123.1,123.04,1.72707976]
[1769416457561,390.11236291,123.1,123.05,65.54521732]
[1769416457863,391.11236291,123.1,123.05,65.54521732]
[1769416458869,391.11236291,123.1,123.05,67.27229708]
[1769416459259,323.3195,123.1,123.05,67.27229708]
[1769416460066,77.6225902,123.1,123.05,67.27229708]
[1769416460266,395.1625902,123.1,123.05,67.27229708]
[1769416461066,395.1625902,123.1,123.05,65.54521732]
[1769416461769,77.6225902,123.1,123.05,65.54521732]
[1769416461967,318.52,123.09,123.05,65.54521732]
[1769416466570,77.6225902,123.1,123.05,65.54521732]
[1769416466772,321.22,123.09,123.05,65.54521732]
[1769416479989,324.4,123.09,123.05,65.54521732]
[1769416487392,331.7202,123.09,123.05,65.54521732]
[1769416487595,66.83272391,123.08,123.03,67.92420145]
[1769416488295,74.15362391,123.08,123.03,67.92420145]
[1769416489697,7.3213,123.07,123.03,67.92420145]
[1769416493498,74.15352391,123.08,123.04,1.72707976]
[1769416497403,74.15352391,123.08,123.03,67.92420145]
[1769416499119,66.83272391,123.08,123.03,67.92420145]
[1769416500814,66.83272391,123.08,123.03,75.24770145]
[1769416502514,324.4,123.09,123.04,73.52002169]
[1769416502716,391.23272391,123.09,123.04,73.52002169]
[1769416503516,391.23272391,123.09,123.05,1.72707976]
[1769416503822,66.83272391,123.08,123.05,1.72707976]
[1769416504321,66.83272391,123.08,123.03,1.72707976]
[1769416504516,66.83272391,123.08,123.03,67.92420145]
[1769416506428,391.23272391,123.08,123.03,67.92420145]
[1769416509429,398.55342391,123.08,123.03,67.92420145]
[1769416509729,398.55342391,123.08,123.03,67.92438657]
[1769416511630,391.23272391,123.08,123.03,67.92438657]
[1769416514229,66.83272391,123.08,123.03,67.92438657]
[1769416514437,353.71272391,123.08,123.03,67.92438657]
[1769416515432,361.03372391,123.08,123.03,67.92438657]
[1769416515639,68.87301408,123.07,123.01,66.32061505]
[1769416516940,76.19441408,123.07,123.01,73.64501505]
[1769416517235,76.19441408,123.07,123.01,66.32061505]
[1769416518936,76.19441408,123.07,123.02,73.6590117]
[1769416519742,68.87301408,123.07,123.02,73.6590117]
[1769416520439,68.87301408,123.07,123.03,7.3236]
[1769416525238,68.87301408,123.07,123.02,73.6589117]
[1769416530042,68.87301408,123.07,123.03,7.3235]
[1769416531048,286.88,123.08,123.04,7.3229]
[1769416531242,286.88,123.08,123.03,68.06207658]
[1769416532549,286.88,123.08,123.04,7.3226]
[1769416532848,70.59011894,123.09,123.04,7.3226]
[1769416533446,77.91021894,123.09,123.03,73.6584117]
[1769416533653,79.63748382,123.09,123.03,7.3236]
[1769416536946,79.63748382,123.09,123.02,80.30255378]
[1769416537150,79.63748382,123.09,123.02,78.5752889]
[1769416537347,79.63748382,123.09,123.02,80.30255378]
[1769416538054,77.91021894,123.09,123.02,80.30255378]
[1769416538555,69.86642961,123.07,123.02,72.97835378]
[1769416542957,77.18782961,123.07,123.02,72.97835378]
[1769416543159,77.18782961,123.07,123.0,72.97835378]
[1769416543353,71.59369449,123.07,122.98,71.2510889]
[1769416543552,77.18952961,123.04,122.98,72.97835378]
[1769416543952,77.18952961,123.04,122.98,80.30485378]
[1769416544453,69.86642961,123.04,122.98,80.30485378]
[1769416545261,77.18962961,123.04,122.98,80.30485378]
[1769416545656,77.18962961,123.04,122.98,78.5775889]
[1769416546155,77.19012961,123.03,122.98,71.2510889]
[1769416547760,69.86642961,123.03,122.98,71.2510889]
[1769416552157,69.86642961,123.03,122.98,78.5775889]
[1769416552554,69.86642961,123.05,123.0,71.2510889]
[1769416552956,69.86642961,123.05,123.0,78.5763889]
[1769416553354,69.86642961,123.05,123.0,71.2510889]
[1769416554363,71.59369449,123.05,122.98,71.2510889]
[1769416555160,71.59369449,123.05,122.99,72.97835378]
[1769416555361,69.86642961,123.05,122.99,72.97835378]
[1769416556258,69.86642961,123.05,123.0,7.3252]
[1769416558667,69.86642961,123.05,122.99,72.97835378]
[1769416559166,71.59369449,123.05,122.99,71.2510889]
[1769416559369,77.18962961,123.04,122.97,392.65629604]
[1769416559662,77.18962961,123.04,122.98,71.2510889]
[1769416560072,1.72726488,123.05,122.97,314.07840714]
[1769416560073,69.86642961,123.02,122.97,314.07840714]
[1769416560367,69.86642961,123.02,122.97,312.35114226]
[1769416561669,77.19062961,123.02,122.96,71.2510889]
[1769416562564,77.19132961,123.01,122.96,71.2510889]
[1769416562769,71.59369449,123.01,122.94,71.2510889]
[1769416564062,77.19242961,123.0,122.94,71.2510889]
[1769416567172,77.19242961,123.0,122.94,72.97835378]
[1769416567376,77.19242961,123.0,122.94,80.30735378]
[1769416567771,113.9293,123.03,122.92,65.73674196]
[1769416567977,69.77299482,123.0,122.94,65.73674196]
[1769416568276,69.77299482,123.0,122.95,1.72726488]
[1769416569378,69.77299482,123.0,122.95,9.05556488]
[1769416569575,69.77299482,123.0,122.95,9.05791602]
[1769416573380,69.77299482,123.0,122.95,1.72961602]
[1769416575672,69.77299482,123.0,122.95,67.46635798]
[1769416579581,69.77299482,123.0,122.95,1.72961602]
[1769416580083,69.70973998,123.02,122.97,1.72961602]
[1769416585179,69.70973998,123.02,122.97,69.7966894]
[1769416585379,69.70973998,123.04,122.97,77.1233894]
[1769416586887,69.70973998,122.99,122.91,68.06707338]
[1769416587079,69.70973998,122.99,122.92,69.7966894]
[1769416588188,69.70973998,122.99,122.92,77.1266894]
[1769416589787,71.439356,122.99,122.92,75.39707338]
[1769416594195,78.765456,122.99,122.92,75.39707338]
[1769416598299,77.03583998,122.99,122.93,72.03295372]
[1769416598588,69.70973998,122.99,122.93,66.43306974]
[1769416599184,69.70973998,122.99,122.94,72.03235372]
[1769416605499,69.70973998,122.99,122.95,66.43306974]
[1769416612804,7.324,123.03,122.95,66.43306974]
[1769416613018,68.69778184,123.03,122.98,64.70345372]
[1769416613204,68.69778184,123.03,122.99,1.72961602]
[1769416623112,68.69778184,123.03,122.98,73.75966974]
[1769416631625,68.69778184,123.03,122.98,73.758602]
[1769416635223,76.02158184,123.03,122.96,7.3273]
[1769416635423,76.02158184,123.03,122.96,77.41993359]
[1769416635624,68.69778184,123.03,122.96,77.41993359]
[1769416635817,69.91901846,123.01,122.96,70.09263359]
[1769416637429,77.24401846,123.01,122.96,70.09263359]
[1769416639230,69.91901846,123.01,122.96,70.09263359]
[1769416639423,71.64756674,123.01,122.96,70.09263359]
[1769416639826,71.64756674,123.01,122.96,77.42043359]
[1769416640320,69.91901846,123.01,122.96,77.42043359]
[1769416640528,71.64756674,123.01,122.96,77.42043359]
[1769416640727,69.91901846,123.01,122.96,77.42043359]
[1769416641727,66.59993024,122.97,122.9,67.44473005]
[1769416642225,1.72854828,122.96,122.9,67.44473005]
[1769416642420,66.59993024,122.97,122.9,67.44473005]
[1769416643129,66.59993024,122.97,122.92,7.3301]
[1769416646336,1.72854828,122.96,122.92,7.3301]
[1769416646536,66.59993024,122.96,122.92,7.3301]
[1769416648038,66.59993024,122.96,122.93,7.3296]
[1769416648530,66.59993024,122.96,122.91,74.77503005]
[1769416649132,66.59993024,122.96,122.92,7.3301]
[1769416650735,1.72854828,122.99,122.94,7.329]
[1769416650936,1.72854828,122.99,122.93,67.44473005]
[1769416651139,66.59993024,122.99,122.93,67.44473005]
[1769416651838,66.59993024,122.99,122.95,7.3284]
[1769416652735,1.72854828,122.98,122.95,7.3284]
[1769416653833,66.59993024,123.0,122.96,7.3277]
[1769416655344,1.72854828,122.99,122.95,74.77303005]
[1769416655533,1.72854828,122.98,122.95,7.3283]
[1769416657242,1.72854828,122.98,122.94,67.27472092]
[1769416657639,68.81628691,122.98,122.91,67.27472092]
[1769416658946,68.81628691,122.98,122.93,67.27472092]
[1769416663250,68.81628691,122.98,122.93,74.60432092]
[1769416667652,68.81628691,122.98,122.94,7.329]
[1769416669745,68.81628691,122.97,122.93,7.3296]
[1769416671555,67.08773863,122.97,122.93,7.3296]
[1769416672155,68.81628691,122.96,122.92,74.60492092]
[1769416672350,68.81628691,122.96,122.92,7.3302]
[1769416672556,67.08773863,122.96,122.92,7.3302]
[1769416673060,67.08773863,122.96,122.93,7.3295]
[1769416678062,68.81628691,122.96,122.93,7.3295]
[1769416679072,68.81628691,122.96,122.92,7.3301]
[1769416686166,69.38587763,122.94,122.91,7.3307]
[1769416686766,71.11442591,122.94,122.91,7.3307]
[1769416687866,69.38587763,122.94,122.91,7.3307]
[1769416697679,71.1174682,122.94,122.91,7.3307]
[1769416699179,69.38587763,122.94,122.91,7.3307]
[1769416705994,57.13157763,122.94,122.91,7.3307]
[1769416706194,44.56167763,122.94,122.91,7.3307]
[1769416710293,32.08257763,122.94,122.91,7.3307]
[1769416711195,1.73159057,122.96,122.92,7.3301]
[1769416712296,65.04720808,122.95,122.92,7.3301]
[1769416712485,25.87860808,122.95,122.92,7.3301]
[1769416712689,9.97909482,122.95,122.92,7.3301]
[1769416713295,9.482e-05,122.95,122.92,7.3301]
[1769416715198,9.482e-05,122.95,122.9,72.25016121]
[1769416716401,1.73159057,122.96,122.91,78.56302079]
[1769416716699,6.91399221,122.95,122.91,78.56302079]
[1769416716898,34.74701072,122.96,122.91,78.56302079]
[1769416717201,6.91399221,122.95,122.91,78.56302079]
[1769416717400,34.74701072,122.96,122.91,78.56302079]
[1769416717601,6.91445369,122.95,122.91,78.56302079]
[1769416717801,34.74701072,122.96,122.91,78.56302079]
[1769416717999,6.91444911,122.95,122.91,78.56302079]
[1769416718199,34.74701072,122.96,122.91,78.56302079]
[1769416718398,6.91444911,122.95,122.91,78.56302079]
[1769416718599,34.74701072,122.96,122.91,78.56302079]
[1769416718799,6.91500324,122.95,122.91,78.56302079]
[1769416719002,34.74701072,122.96,122.91,78.56302079]
[1769416719197,6.91500324,122.95,122.91,78.56302079]
[1769416719397,34.74701072,122.96,122.91,78.56302079]
[1769416719598,6.91558754,122.95,122.91,78.56302079]
[1769416719795,34.74701072,122.96,122.91,78.56302079]
[1769416719998,6.91559106,122.95,122.91,78.56302079]
[1769416720203,34.74701072,122.96,122.91,78.56302079]
[1769416720401,6.91559106,122.95,122.91,78.56302079]
[1769416720597,33.01542015,122.96,122.91,78.56302079]
[1769416720794,6.91600602,122.95,122.91,78.56302079]
[1769416721008,33.01542015,122.96,122.91,78.56302079]
[1769416721203,6.91600602,122.95,122.91,78.56302079]
[1769416721405,34.74701072,122.96,122.91,71.23242079]
[1769416721605,8.64850059,122.95,122.91,71.23242079]
[1769416721807,1.73159057,122.95,122.91,71.23242079]
[1769416723307,6.91743551,122.94,122.91,71.23242079]
[1769416723508,1.73159057,122.95,122.91,71.23242079]
[1769416723806,6.91788443,122.94,122.91,71.23242079]
[1769416723997,1.73159057,122.95,122.91,71.23242079]
[1769416724197,6.91788443,122.94,122.91,71.23242079]
[1769416724397,1.73159057,122.95,122.91,71.23242079]
[1769416724594,6.91840016,122.94,122.91,71.23242079]
[1769416724899,1.73159057,122.95,122.91,71.23242079]
[1769416725193,6.91840016,122.94,122.91,71.23242079]
[1769416725397,1.73159057,122.95,122.91,71.23242079]
[1769416725600,6.91845614,122.94,122.91,71.23242079]
[1769416725794,1.73159057,122.95,122.91,71.23242079]
[1769416725999,6.91845614,122.94,122.91,71.23242079]
[1769416726200,1.73159057,122.95,122.91,71.23242079]
[1769416726500,6.9190772,122.94,122.91,71.23242079]
[1769416726808,33.01542015,122.96,122.91,71.23242079]
[1769416727112,6.9191298,122.95,122.91,71.23242079]
[1769416727406,6.9191298,122.94,122.91,71.23242079]
[1769416727608,33.01542015,122.96,122.91,71.23242079]
[1769416727824,6.93866226,122.95,122.91,71.23242079]
[1769416728005,6.93866226,122.94,122.91,71.23242079]
[1769416728206,33.01542015,122.96,122.91,71.23242079]
[1769416728407,6.93866226,122.95,122.91,71.23242079]
[1769416728703,6.93866226,122.94,122.91,71.23242079]
[1769416728902,33.01542015,122.96,122.91,71.23242079]
[1769416729199,6.93931039,122.95,122.91,71.23242079]
[1769416729401,33.01542015,122.96,122.91,78.56312079]
[1769416729604,6.93978441,122.95,122.91,78.56312079]
[1769416729806,33.01542015,122.96,122.91,78.56312079]
[1769416730007,6.9397754,122.95,122.91,71.23242079]
[1769416730219,33.01542015,122.96,122.91,71.23242079]
[1769416730509,6.88705575,122.95,122.91,71.23242079]
[1769416730705,33.01542015,122.96,122.91,71.23242079]
[1769416730911,6.88705575,122.95,122.91,71.23242079]
[1769416731111,33.01542015,122.96,122.91,71.23242079]
[1769416731409,6.88705575,122.95,122.91,71.23242079]
[1769416731596,33.01542015,122.96,122.91,71.23242079]
[1769416731803,6.8869863,122.95,122.91,71.23242079]
[1769416732008,33.01542015,122.96,122.91,71.23242079]
[1769416732203,6.8869863,122.95,122.91,71.23242079]
[1769416732399,33.01542015,122.96,122.91,71.23242079]
[1769416732607,6.88692575,122.95,122.91,71.23242079]
[1769416732809,33.01542015,122.96,122.91,71.23242079]
[1769416732999,6.88692575,122.95,122.91,71.23242079]
[1769416733206,40.34342015,122.96,122.91,71.23242079]
[1769416733404,6.88693477,122.95,122.91,71.23242079]
[1769416733611,40.34342015,122.96,122.91,71.23242079]
[1769416733812,6.88689658,122.95,122.91,71.23242079]
[1769416734006,40.34342015,122.96,122.91,71.23242079]
[1769416734208,6.88689658,122.95,122.91,71.23242079]
[1769416734409,40.34342015,122.96,122.91,71.23242079]
[1769416734610,6.88686676,122.95,122.91,71.23242079]
[1769416734812,40.34342015,122.96,122.91,71.23242079]
[1769416735112,6.88686677,122.95,122.91,71.23242079]
[1769416735313,40.34342015,122.96,122.91,71.23242079]
[1769416735512,6.88682091,122.95,122.91,71.23242079]
[1769416735713,40.34342015,122.96,122.91,71.23242079]
[1769416735917,6.88682094,122.95,122.91,71.23242079]
[1769416736112,40.34342015,122.96,122.91,71.23242079]
[1769416736314,6.88682094,122.95,122.91,71.23242079]
[1769416736510,40.34342015,122.96,122.91,71.23242079]
[1769416736816,6.88679176,122.95,122.91,71.23242079]
[1769416737012,40.34342015,122.96,122.91,71.23242079]
[1769416737211,6.88679179,122.95,122.91,71.23242079]
[1769416737412,40.34342015,122.96,122.91,71.23242079]
[1769416737614,6.8867701,122.95,122.91,71.23242079]
[1769416737815,40.34342015,122.96,122.91,71.23242079]
[1769416738014,6.8867701,122.95,122.91,71.23242079]
[1769416738222,40.34342015,122.96,122.91,71.23242079]
[1769416738420,6.88677912,122.95,122.91,71.23242079]
[1769416738623,40.34342015,122.96,122.91,71.23242079]
[1769416738822,6.88677655,122.95,122.91,71.23242079]
[1769416739020,40.34342015,122.96,122.91,71.23242079]
[1769416739322,39.9021967,122.95,122.87,71.23242079]
[1769416739508,39.9021967,122.95,122.83,228.2098]
[1769416739509,33.01542015,122.93,122.86,72.96401136]
[1769416739712,6.88879636,122.92,122.86,72.96401136]
[1769416740013,33.01542015,122.93,122.86,72.96401136]
[1769416740208,6.88880891,122.92,122.86,72.96401136]
[1769416740413,33.01542015,122.93,122.86,72.96401136]
[1769416740622,6.88879919,122.92,122.86,72.96401136]
[1769416740825,33.01542015,122.93,122.87,78.56562079]
[1769416741022,6.88879919,122.92,122.87,78.56562079]
[1769416741320,33.01542015,122.93,122.89,71.23242079]
[1769416741819,33.01542015,122.95,122.89,71.23242079]
[1769416742027,6.88497124,122.94,122.9,72.96401136]
[1769416742322,33.01542015,122.95,122.9,72.96401136]
[1769416742617,6.88432866,122.94,122.9,72.96401136]
[1769416742826,6.85970938,122.94,122.9,72.96401136]
[1769416743023,33.01542015,122.95,122.9,72.96401136]
[1769416743217,6.85971837,122.94,122.9,72.96401136]
[1769416743418,6.85929284,122.94,122.9,72.96401136]
[1769416748331,33.01542015,122.95,122.9,72.96401136]
[1769416748531,7.3283,122.96,122.92,1.73159057]
[1769416748728,7.3283,122.96,122.91,69.31910787]
[1769416748928,7.3283,122.96,122.91,71.05069844]
[1769416749631,6.85661249,122.95,122.91,71.05069844]
[1769416749829,7.3283,122.96,122.91,71.05069844]
[1769416750131,6.85661249,122.95,122.91,71.05069844]
[1769416750332,7.3283,122.96,122.91,71.05069844]
[1769416750538,6.85661134,122.95,122.91,71.05069844]
[1769416750737,7.3283,122.96,122.91,71.05069844]
[1769416751031,6.8566114,122.95,122.91,71.05069844]
[1769416751236,7.3283,122.96,122.91,71.05069844]
[1769416751436,6.85649945,122.95,122.91,71.05069844]
[1769416751733,7.3283,122.96,122.91,71.05069844]
[1769416751935,6.85661007,122.95,122.91,71.05069844]
[1769416752229,7.3283,122.96,122.91,71.05069844]
[1769416752530,6.8564981,122.95,122.91,71.05069844]
[1769416752729,7.3283,122.96,122.91,71.05069844]
[1769416752930,6.85660879,122.95,122.91,71.05069844]
[1769416753131,7.3283,122.96,122.91,71.05069844]
[1769416753333,6.85660879,122.95,122.91,71.05069844]
[1769416753531,7.3283,122.96,122.91,71.05069844]
[1769416753730,6.85659703,122.95,122.91,71.05069844]
[1769416753930,7.3283,122.96,122.91,71.05069844]
[1769416754130,6.85660406,122.95,122.91,71.05069844]
[1769416754332,7.3283,122.96,122.92,1.73159057]
[1769416754526,6.85660682,122.95,122.92,71.05069844]
[1769416754727,40.30940923,122.97,122.92,71.05069844]
[1769416754926,6.85617737,122.96,122.92,71.05069844]
[1769416755133,6.85617737,122.95,122.92,71.05069844]
[1769416755333,6.85566216,122.96,122.93,71.05069844]
[1769416755629,7.3266,122.98,122.93,71.04945815]
[1769416755831,6.85465256,122.97,122.93,71.04945815]
[1769416756031,7.3266,122.98,122.94,71.04945815]
[1769416756232,6.85465256,122.97,122.94,71.04945815]
[1769416756426,7.3266,122.98,122.94,71.04945815]
[1769416756633,6.85360023,122.97,122.94,71.04945815]
[1769416756832,7.3266,122.98,122.94,71.04945815]
[1769416757131,6.85360023,122.97,122.94,71.04945815]
[1769416757332,7.3266,122.98,122.94,71.04945815]
[1769416757529,6.85267389,122.97,122.94,71.04945815]
[1769416757842,7.3266,122.98,122.94,71.04945815]
[1769416758138,6.85267389,122.97,122.94,71.04945815]
[1769416758337,7.3266,122.98,122.94,69.31910787]
[1769416758533,6.85184051,122.97,122.94,69.31910787]
[1769416758834,7.3266,122.98,122.94,69.31910787]
[1769416759033,6.85184948,122.97,122.94,69.31910787]
[1769416759234,7.3266,122.98,122.94,69.31910787]
[1769416759440,6.85111766,122.97,122.94,69.31910787]
[1769416759634,7.3266,122.98,122.94,69.31910787]
[1769416759937,6.85111766,122.97,122.94,69.31910787]
[1769416760138,7.3266,122.98,122.94,69.31910787]
[1769416760439,6.85111766,122.97,122.94,69.31910787]
[1769416760736,7.3266,122.98,122.94,69.31910787]
[1769416760932,6.85044638,122.97,122.94,69.31910787]
[1769416761138,7.3266,122.98,122.94,69.31910787]
[1769416761340,6.85044638,122.97,122.94,69.31910787]
[1769416761533,7.3266,122.98,122.94,69.31910787]
[1769416761837,6.84982749,122.97,122.94,69.31910787]
[1769416762032,7.3266,122.98,122.94,69.31910787]
[1769416762231,6.84982749,122.97,122.94,69.31910787]
[1769416762430,7.3266,122.98,122.94,69.31910787]
[1769416762637,6.84925693,122.97,122.94,69.31910787]
[1769416762840,7.3266,122.98,122.94,69.31910787]
[1769416763040,6.84925693,122.97,122.94,69.31910787]
[1769416763341,7.3266,122.98,122.94,69.31910787]
[1769416763531,6.84872651,122.97,122.94,69.31910787]
[1769416763732,7.3266,122.98,122.94,69.31910787]
[1769416763940,6.84872651,122.97,122.94,69.31910787]
[1769416764236,7.3266,122.98,122.94,69.31910787]
[1769416764438,14.17563219,122.97,122.94,69.31910787]
[1769416764731,7.3274,122.97,122.94,69.31910787]
[1769416765137,7.3267,122.98,122.94,69.31910787]
[1769416765333,6.84749732,122.97,122.92,67.8267527]
[1769416765532,33.04888742,122.98,122.92,69.55710298]
[1769416765738,6.8479531,122.97,122.92,69.55710298]
[1769416766039,33.04888742,122.98,122.92,69.55710298]
[1769416766241,6.84794959,122.97,122.92,69.55710298]
[1769416766539,33.04888742,122.98,122.92,69.55710298]
[1769416766739,6.84775495,122.97,122.92,69.55710298]
[1769416766939,7.3274,122.97,122.92,69.55710298]
[1769416772247,7.328,122.96,122.92,67.8267527]
[1769416772436,7.328,122.96,122.92,69.55710298]
[1769416774043,14.19081868,122.97,122.92,69.55710298]
[1769416774240,33.04888742,123.0,122.95,69.55710298]
[1769416774446,6.86316683,122.99,122.95,69.55710298]
[1769416774642,6.86316683,122.99,122.9,114.0412]
[1769416774643,256.8649,123.01,122.97,69.55710298]
[1769416774845,33.04888742,123.02,122.97,69.55710298]
[1769416775243,40.37318742,123.02,122.97,69.55710298]
[1769416776045,7.325,123.01,122.97,69.55710298]
[1769416776249,39.92192741,123.01,122.95,67.62268256]
[1769416776447,39.92192741,123.01,122.95,69.35303284]
[1769416776749,7.3243,123.02,122.96,69.35303284]
[1769416777254,7.3243,123.02,122.92,114.0233]
[1769416777255,7.3243,123.02,122.97,69.35303284]
[1769416778961,7.3249,123.01,122.97,67.62268256]
[1769416781566,7.3255,123.0,122.97,67.62268256]
[1769416782661,7.3255,123.0,122.95,69.35303284]
[1769416787276,7.3255,123.0,122.96,69.35303284]
[1769416787668,7.3255,123.0,122.97,1.73035028]
[1769416788978,7.3255,123.0,122.96,69.35303284]
[1769416789172,47.24682741,123.01,122.96,69.35303284]
[1769416790575,7.3249,123.01,122.96,69.35303284]
[1769416793977,7.3249,123.01,122.98,1.73035028]
[1769416794381,7.3249,123.01,122.98,69.35303284]
[1769416795180,14.0268564,123.02,122.98,69.35303284]
[1769416795376,39.92192741,123.03,122.99,1.73035028]
[1769416795982,7.3238,123.03,122.99,69.35303284]
[1769416796982,7.3238,123.03,122.96,7.3278]
[1769416796983,39.92192741,123.05,123.01,1.73035028]
[1769416797982,47.24442741,123.05,123.01,1.73035028]
[1769416802191,47.24442741,123.05,123.0,69.35303284]